fUSD/lending_fUSD_20250313
["ID","MTS","AMOUNT","RATE_DAILY","PERIOD"]
[356072943,1741881042049,-500.0,0.00028409,18]
[356072944,1741881042058,-500.0,0.00028409,18]
[356072945,1741881042068,-500.0,0.00028409,18]
[356072946,1741881042077,-500.0,0.00028409,18]
[356072947,1741881042087,-500.0,0.00028409,18]
[356072948,1741881042096,-500.0,0.00028409,18]
[356072949,1741881042106,-500.0,0.00028409,18]
[356072950,1741881042115,-500.0,0.00028409,18]
[356072951,1741881042124,-500.0,0.00028409,18]
[356072952,1741881042134,-168.79806734,0.00028409,18]
[356072953,1741881042143,-665.23,0.00028409,7]
[356072954,1741881042153,-665.23,0.00028409,7]
[356072955,1741881042162,-665.23,0.00028409,7]
[356072956,1741881042171,-665.23,0.00028409,7]
[356072957,1741881042181,-665.23,0.00028409,7]
[356072958,1741881042190,-665.23,0.00028409,7]
[356072959,1741881042199,-665.23,0.00028409,7]
[356072960,1741881042209,-665.23,0.00028409,7]
[356072961,1741881042218,-665.23,0.00028409,7]
[356072962,1741881042227,-500.0,0.00028409,18]
[356072963,1741881042236,-500.0,0.00028409,18]
[356072964,1741881042246,-500.0,0.00028409,18]
[356072965,1741881042255,-500.0,0.00028409,18]
[356072966,1741881042264,-500.0,0.00028409,18]
[356072967,1741881042273,-500.0,0.00028409,18]
[356072968,1741881042282,-500.0,0.00028409,18]
[356072969,1741881042291,-500.0,0.00028409,18]
[356072970,1741881042301,-500.0,0.00028409,18]
[356072971,1741881042310,-500.0,0.00028409,18]
[356072973,1741881042319,-500.0,0.00028409,18]
[356072975,1741881042330,-500.0,0.00028409,18]
[356072976,1741881042339,-500.0,0.00028409,18]
[356072978,1741881042348,-500.0,0.00028409,18]
[356072980,1741881042357,-500.0,0.00028409,18]
[356072981,1741881042366,-204.13676815,0.00028409,18]
[356072983,1741881042375,-500.0,0.00028409,18]
[356072985,1741881042384,-500.0,0.00028409,18]
[356072986,1741881042394,-500.0,0.00028409,18]
[356072989,1741881042405,-500.0,0.00028409,18]
[356072992,1741881042414,-500.0,0.00028409,18]
[356072994,1741881042424,-500.0,0.00028409,18]
[356072995,1741881042433,-500.0,0.00028409,18]
[356072996,1741881042442,-500.0,0.00028409,18]
[356072997,1741881042451,-500.0,0.00028409,18]
[356072998,1741881042461,-364.78145427,0.00028409,18]
[356072999,1741881042470,-500.0,0.00028409,18]
[356073001,1741881042479,-500.0,0.00028409,18]
[356073003,1741881042488,-500.0,0.00028409,18]
[356073005,1741881042498,-500.0,0.00028409,18]
[356073007,1741881042507,-500.0,0.00028409,18]
[356073009,1741881042518,-500.0,0.00028409,18]
[356073010,1741881042528,-500.0,0.00028409,18]
[356073011,1741881042537,-500.0,0.00028409,18]
[356073012,1741881042547,-500.0,0.00028409,18]
[356073013,1741881042556,-500.0,0.00028409,18]
[356073014,1741881042565,-449.60533595,0.00028409,18]
[356073015,1741881042574,-500.0,0.00028409,18]
[356073016,1741881042583,-500.0,0.00028409,18]
[356073017,1741881042592,-500.0,0.00028409,18]
[356073018,1741881042602,-500.0,0.00028409,18]
[356073019,1741881042611,-500.0,0.00028409,18]
[356073020,1741881042621,-500.0,0.00028409,18]
[356073021,1741881042631,-500.0,0.00028409,18]
[356073022,1741881042640,-348.92314713,0.00028409,18]
[356073023,1741881042652,-500.0,0.00028409,18]
[356073024,1741881042661,-500.0,0.00028409,18]
[356073025,1741881042670,-500.0,0.00028409,18]
[356073026,1741881042680,-500.0,0.00028409,18]
[356073027,1741881042689,-500.0,0.00028409,18]
[356073028,1741881042699,-500.0,0.00028409,18]
[356073029,1741881042708,-490.40868532,0.00028409,18]
[356073030,1741881042717,-500.0,0.00028409,18]
[356073031,1741881042727,-500.0,0.00028409,18]
[356073032,1741881042736,-500.0,0.00028409,18]
[356073033,1741881042746,-792.28,0.00028409,18]
[356073034,1741881042756,-792.28,0.00028409,18]
[356073035,1741881042765,-767.90165251,0.00028409,18]
[356073036,1741881042873,-24.37834749,0.00028409,18]
[356073037,1741881042883,-792.28,0.00028409,18]
[356073038,1741881042893,-792.28,0.00028409,18]
[356073039,1741881042903,-792.28,0.00028409,18]
[356073041,1741881042913,-792.28,0.00028409,18]
[356073042,1741881042922,-792.28,0.00028409,18]
[356073043,1741881042932,-792.28,0.00028409,18]
[356073044,1741881042942,-572.41,0.00028409,18]
[356073045,1741881042954,-572.41,0.00028409,18]
[356073046,1741881042963,-572.41,0.00028409,18]
[356073047,1741881042972,-572.41,0.00028409,18]
[356073048,1741881042982,-572.41,0.00028409,18]
[356073049,1741881042991,-572.41,0.00028409,18]
[356073050,1741881043002,-572.41,0.00028409,18]
[356073051,1741881043011,-572.41,0.00028409,18]
[356073052,1741881043021,-572.41,0.00028409,18]
[356073053,1741881043031,-500.0,0.00028409,18]
[356073054,1741881043041,-500.0,0.00028409,18]
[356073055,1741881043052,-500.0,0.00028409,18]
[356073056,1741881043062,-500.0,0.00028409,18]
[356073057,1741881043071,-500.0,0.00028409,18]
[356073058,1741881043081,-225.55050028,0.00028409,18]
[356073059,1741881043090,-500.0,0.00028409,18]
[356073060,1741881043100,-500.0,0.00028409,18]
[356073061,1741881043110,-500.0,0.00028409,18]
[356073062,1741881043120,-500.0,0.00028409,18]
[356073063,1741881043130,-500.0,0.00028409,18]
[356073064,1741881043140,-500.0,0.00028409,18]
[356073065,1741881043152,-500.0,0.00028409,18]
[356073066,1741881043162,-500.0,0.00028409,18]
[356073067,1741881043172,-292.72257383,0.00028409,18]
[356073068,1741881043182,-500.0,0.00028409,18]
[356073069,1741881043192,-500.0,0.00028409,18]
[356073070,1741881043202,-534.39,0.00028409,18]
[356073071,1741881043212,-534.39,0.00028409,18]
[356073072,1741881043222,-534.39,0.00028409,18]
[356073073,1741881043232,-534.39,0.00028409,18]
[356073074,1741881043242,-534.39,0.00028409,18]
[356073075,1741881043252,-300.0,0.00028409,18]
[356073076,1741881043261,-534.39,0.00028409,18]
[356073077,1741881043271,-300.0,0.00028409,18]
[356073078,1741881043281,-534.39,0.00028409,18]
[356073079,1741881043290,-397.20660497,0.00028409,18]
[356073080,1741881043300,-534.39,0.00028409,18]
[356073081,1741881043310,-534.39,0.00028409,18]
[356073082,1741881043320,-870.88,0.00028409,18]
[356073083,1741881043330,-870.88,0.00028409,18]
[356073084,1741881043340,-870.88,0.00028409,18]
[356073085,1741881043350,-870.88,0.00028409,18]
[356073086,1741881043360,-870.88,0.00028409,18]
[356073087,1741881043370,-870.88,0.00028409,18]
[356073088,1741881043380,-870.88,0.00028409,18]
[356073089,1741881043391,-870.88,0.00028409,18]
[356073090,1741881043407,-870.88,0.00028409,18]
[356073091,1741881043417,-500.0,0.00028409,18]
[356073092,1741881043426,-500.0,0.00028409,18]
[356073093,1741881043436,-500.0,0.00028409,18]
[356073094,1741881043446,-500.0,0.00028409,18]
[356073095,1741881043457,-500.0,0.00028409,18]
[356073096,1741881043467,-500.0,0.00028409,18]
[356073097,1741881043478,-500.0,0.00028409,18]
[356073098,1741881043487,-500.0,0.00028409,18]
[356073099,1741881043497,-500.0,0.00028409,18]
[356073100,1741881043507,-500.0,0.00028409,18]
[356073101,1741881043517,-500.0,0.00028409,18]
[356073102,1741881043527,-500.0,0.00028409,18]
[356073103,1741881043538,-500.0,0.00028409,18]
[356073104,1741881043548,-500.0,0.00028409,18]
[356073105,1741881043558,-500.0,0.00028409,18]
[356073106,1741881043569,-500.0,0.00028409,18]
[356073107,1741881043579,-188.93572259,0.00028409,18]
[356073108,1741881043590,-500.0,0.00028409,18]
[356073109,1741881043600,-500.0,0.00028409,18]
[356073110,1741881043610,-500.0,0.00028409,18]
[356073111,1741881043620,-500.0,0.00028409,18]
[356073112,1741881043631,-500.0,0.00028409,18]
[356073113,1741881043641,-500.0,0.00028409,18]
[356073114,1741881043653,-50.72584432,0.00028409,18]
[356073115,1741881043697,-449.27415568,0.00028409,18]
[356073116,1741881043707,-500.0,0.00028409,18]
[356073117,1741881043717,-78.16334694,0.00028409,18]
[356073118,1741881043729,-421.83665306,0.00028409,18]
[356073119,1741881043739,-500.0,0.00028409,18]
[356073120,1741881043749,-441.85169623,0.00028409,18]
[356073121,1741881043761,-58.14830377,0.00028409,18]
[356073122,1741881043771,-500.0,0.00028409,18]
[356073123,1741881043781,-500.0,0.00028409,18]
[356073124,1741881043791,-500.0,0.00028409,18]
[356073125,1741881043801,-500.0,0.00028409,18]
[356073126,1741881043811,-500.0,0.00028409,18]
[356073127,1741881043821,-500.0,0.00028409,18]
[356073128,1741881043831,-500.0,0.00028409,18]
[356073129,1741881043841,-312.36582103,0.00028409,18]
[356073130,1741881043854,-187.63417897,0.00028409,18]
[356073131,1741881043864,-225.75841614,0.00028409,18]
[356073132,1741881043874,-500.0,0.00028409,18]
[356073133,1741881043884,-315.32192349,0.00028409,18]
[356073134,1741881043894,-288.19780495,0.00028409,18]
[356073135,1741881043908,-211.80219505,0.00028409,18]
[356073136,1741881043918,-500.0,0.00028409,18]
[356073137,1741881043928,-500.0,0.00028409,18]
[356073138,1741881043938,-500.0,0.00028409,18]
[356073139,1741881043950,-500.0,0.00028409,18]
[356073140,1741881043962,-500.0,0.00028409,18]
[356073141,1741881043972,-500.0,0.00028409,18]
[356073142,1741881043983,-500.0,0.00028409,18]
[356073143,1741881043995,-500.0,0.00028409,18]
[356073144,1741881044005,-500.0,0.00028409,18]
[356073145,1741881044016,-44.20071434,0.00028409,18]
[356073146,1741881044030,-455.79928566,0.00028409,18]
[356073147,1741881044042,-500.0,0.00028409,18]
[356073148,1741881044052,-500.0,0.00028409,18]
[356073149,1741881044062,-556.56339319,0.00028409,18]
[356073150,1741881044073,-500.0,0.00028409,18]
[356073151,1741881044083,-181.30683158,0.00028409,18]
[356073152,1741881044094,-500.0,0.00028409,18]
[356073153,1741881044104,-500.0,0.00028409,18]
[356073154,1741881044117,-500.0,0.00028409,18]
[356073155,1741881044128,-500.0,0.00028409,18]
[356073156,1741881044138,-500.0,0.00028409,18]
[356073157,1741881044150,-428.07214057,0.00028409,18]
[356073158,1741881044163,-71.92785943,0.00028409,18]
[356073159,1741881044174,-500.0,0.00028409,18]
[356073160,1741881044184,-500.0,0.00028409,18]
[356073161,1741881044195,-167.07326537,0.00028409,18]
[356073162,1741881044204,-500.0,0.00028409,18]
[356073163,1741881044214,-500.0,0.00028409,18]
[356073164,1741881044224,-500.0,0.00028409,18]
[356073165,1741881044234,-364.3570752,0.00028409,18]
[356073166,1741881044246,-135.6429248,0.00028409,18]
[356073167,1741881044256,-230.3381618,0.00028409,18]
[356073168,1741881044267,-1146.37,0.00028409,18]
[356073169,1741881044277,-1146.37,0.00028409,18]
[356073170,1741881044287,-1146.37,0.00028409,18]
[356073171,1741881044297,-1146.37,0.00028409,18]
[356073172,1741881044307,-1146.37,0.00028409,18]
[356073173,1741881044318,-1146.37,0.00028409,18]
[356073174,1741881044328,-1146.37,0.00028409,18]
[356073175,1741881044338,-1146.37,0.00028409,18]
[356073176,1741881044348,-1146.37,0.00028409,18]
[356073177,1741881044359,-500.0,0.00028409,18]
[356073178,1741881044369,-500.0,0.00028409,18]
[356073179,1741881044379,-500.0,0.00028409,18]
[356073180,1741881044389,-500.0,0.00028409,18]
[356073181,1741881044400,-500.0,0.00028409,18]
[356073182,1741881044410,-500.0,0.00028409,18]
[356073183,1741881044421,-500.0,0.00028409,18]
[356073184,1741881044432,-500.0,0.00028409,18]
[356073185,1741881044442,-500.0,0.00028409,18]
[356073186,1741881044452,-500.0,0.00028409,18]
[356073187,1741881044462,-500.0,0.00028409,18]
[356073188,1741881044473,-500.0,0.00028409,18]
[356073189,1741881044483,-500.0,0.00028409,18]
[356073190,1741881044493,-500.0,0.00028409,18]
[356073191,1741881044503,-500.0,0.00028409,18]
[356073192,1741881044512,-500.0,0.00028409,18]
[356073193,1741881044522,-500.0,0.00028409,18]
[356073194,1741881044532,-500.0,0.00028409,18]
[356073195,1741881044541,-175.91689351,0.00028409,18]
[356073196,1741881045168,-324.08310649,0.00028409,18]
[356073197,1741881045179,-500.0,0.00028409,18]
[356073198,1741881045190,-500.0,0.00028409,18]
[356073199,1741881045201,-500.0,0.00028409,18]
[356073200,1741881045212,-178.01332351,0.00028409,18]
[356073201,1741881045224,-321.98667649,0.00028409,18]
[356073202,1741881045235,-595.61675181,0.00028409,18]
[356073203,1741881045245,-176.86303844,0.00028409,18]
[356073204,1741881045255,-300.60212366,0.00028409,18]
[356073205,1741881045266,-573.06442198,0.00028409,18]
[356073206,1741881045275,-552.51,0.00028409,18]
[356073207,1741881045286,-552.51,0.00028409,18]
[356073208,1741881045297,-552.51,0.00028409,18]
[356073209,1741881045307,-552.51,0.00028409,18]
[356073210,1741881045316,-552.51,0.00028409,18]
[356073211,1741881045326,-552.51,0.00028409,18]
[356073212,1741881045336,-552.51,0.00028409,18]
[356073213,1741881045346,-552.51,0.00028409,18]
[356073214,1741881045357,-552.51,0.00028409,18]
[356073215,1741881045367,-253.41395024,0.00028409,18]
[356073216,1741881045377,-713.78,0.00028409,18]
[356073217,1741881045387,-713.78,0.00028409,18]
[356073218,1741881045397,-713.78,0.00028409,18]
[356073219,1741881045411,-713.78,0.00028409,18]
[356073220,1741881045423,-713.78,0.00028409,18]
[356073221,1741881045434,-713.78,0.00028409,18]
[356073222,1741881045445,-713.78,0.00028409,18]
[356073223,1741881045455,-698.47697883,0.00028409,18]
[356073224,1741881045468,-15.30302117,0.00028409,18]
[356073225,1741881045478,-713.78,0.00028409,18]
[356073226,1741881045488,-500.0,0.00028409,18]
[356073227,1741881045498,-449.13862807,0.00028409,18]
[356073228,1741881045510,-50.86137193,0.00028409,18]
[356073229,1741881045520,-500.0,0.00028409,18]
[356073230,1741881045529,-500.0,0.00028409,18]
[356073231,1741881045539,-427.90931508,0.00028409,18]
[356073232,1741881045551,-682.03,0.00028409,18]
[356073233,1741881045561,-682.03,0.00028409,18]
[356073234,1741881045572,-682.03,0.00028409,18]
[356073235,1741881045582,-682.03,0.00028409,18]
[356073236,1741881045592,-682.03,0.00028409,18]
[356073237,1741881045603,-682.03,0.00028409,18]
[356073238,1741881045614,-682.03,0.00028409,18]
[356073239,1741881045625,-682.03,0.00028409,18]
[356073240,1741881045635,-682.03,0.00028409,18]
[356073242,1741881045647,-500.0,0.00028409,18]
[356073244,1741881045658,-461.52759898,0.00028409,18]
[356073246,1741881045669,-328.46351896,0.00028409,18]
[356073247,1741881045681,-171.53648104,0.00028409,18]
[356073248,1741881045692,-500.0,0.00028409,18]
[356073249,1741881045702,-213.97347006,0.00028409,18]
[356073250,1741881045712,-500.0,0.00028409,18]
[356073251,1741881045722,-500.0,0.00028409,18]
[356073252,1741881045732,-500.0,0.00028409,18]
[356073253,1741881045742,-500.0,0.00028409,18]
[356073254,1741881045753,-500.0,0.00028409,18]
[356073255,1741881045763,-500.0,0.00028409,18]
[356073256,1741881045774,-500.0,0.00028409,18]
[356073257,1741881045784,-500.0,0.00028409,18]
[356073258,1741881045795,-500.0,0.00028409,18]
[356073259,1741881045805,-500.0,0.00028409,18]
[356073260,1741881045815,-316.95674461,0.00028409,18]
[356073261,1741881045828,-183.04325539,0.00028409,18]
[356073262,1741881045838,-500.0,0.00028409,18]
[356073263,1741881045849,-500.0,0.00028409,18]
[356073264,1741881045859,-500.0,0.00028409,18]
[356073266,1741881045869,-500.0,0.00028409,18]
[356073267,1741881045879,-500.0,0.00028409,18]
[356073268,1741881045890,-500.0,0.00028409,18]
[356073269,1741881045901,-500.0,0.00028409,18]
[356073270,1741881045911,-168.83742103,0.00028409,18]
[356073271,1741881045924,-331.16257897,0.00028409,18]
[356073272,1741881045934,-283.27347211,0.00028409,18]
[356073273,1741881045945,-637.03,0.00028409,18]
[356073274,1741881045961,-637.03,0.00028409,18]
[356073275,1741881045971,-637.03,0.00028409,18]
[356073276,1741881045982,-637.03,0.00028409,18]
[356073277,1741881045993,-637.03,0.00028409,18]
[356073278,1741881046003,-637.03,0.00028409,18]
[356073279,1741881046014,-637.03,0.00028409,18]
[356073280,1741881046024,-233.62847466,0.00028409,18]
[356073281,1741881046038,-403.40152534,0.00028409,18]
[356073282,1741881046049,-637.03,0.00028409,18]
[356073283,1741881046059,-500.0,0.00028409,18]
[356073284,1741881046070,-314.03365012,0.00028409,18]
[356073285,1741881046080,-500.0,0.00028409,18]
[356073286,1741881046092,-326.6887149,0.00028409,18]
[356073287,1741881046102,-623.23977522,0.00028409,18]
[356073288,1741881046112,-500.0,0.00028409,18]
[356073289,1741881046122,-500.0,0.00028409,18]
[356073290,1741881046132,-500.0,0.00028409,18]
[356073291,1741881046142,-500.0,0.00028409,18]
[356073293,1741881046153,-500.0,0.00028409,18]
[356073295,1741881046163,-500.0,0.00028409,18]
[356073297,1741881046174,-500.0,0.00028409,18]
[356073299,1741881046183,-500.0,0.00028409,18]
[356073300,1741881046194,-500.0,0.00028409,18]
[356073301,1741881046204,-500.0,0.00028409,18]
[356073302,1741881046214,-500.0,0.00028409,18]
[356073303,1741881046224,-500.0,0.00028409,18]
[356073304,1741881046235,-500.0,0.00028409,18]
[356073305,1741881046245,-500.0,0.00028409,18]
[356073306,1741881046255,-500.0,0.00028409,18]
[356073307,1741881046265,-182.93854278,0.00028409,18]
[356073308,1741881046276,-500.0,0.00028409,18]
[356073309,1741881046286,-500.0,0.00028409,18]
[356073310,1741881046296,-197.09405128,0.00028409,18]
[356073311,1741881046306,-500.0,0.00028409,18]
[356073312,1741881046316,-500.0,0.00028409,18]
[356073313,1741881046326,-500.0,0.00028409,18]
[356073314,1741881046335,-633.57846088,0.00028409,18]
[356073315,1741881046346,-500.0,0.00028409,18]
[356073316,1741881046357,-500.0,0.00028409,18]
[356073317,1741881046367,-500.0,0.00028409,18]
[356073318,1741881046377,-500.0,0.00028409,18]
[356073319,1741881046388,-500.0,0.00028409,18]
[356073320,1741881046398,-500.0,0.00028409,18]
[356073321,1741881046408,-500.0,0.00028409,18]
[356073322,1741881046419,-500.0,0.00028409,18]
[356073323,1741881046428,-500.0,0.00028409,18]
[356073324,1741881046438,-500.0,0.00028409,18]
[356073325,1741881046448,-500.0,0.00028409,18]
[356073326,1741881046458,-500.0,0.00028409,18]
[356073327,1741881046468,-500.0,0.00028409,18]
[356073328,1741881046478,-500.0,0.00028409,18]
[356073329,1741881046488,-500.0,0.00028409,18]
[356073330,1741881046499,-431.99527948,0.00028409,18]
[356073331,1741881046575,-68.00472052,0.00028409,18]
[356073332,1741881046585,-500.0,0.00028409,18]
[356073333,1741881046595,-500.0,0.00028409,18]
[356073334,1741881046605,-500.0,0.00028409,18]
[356073335,1741881046615,-500.0,0.00028409,18]
[356073336,1741881046625,-500.0,0.00028409,18]
[356073337,1741881046635,-500.0,0.00028409,18]
[356073338,1741881046645,-500.0,0.00028409,18]
[356073339,1741881046655,-500.0,0.00028409,18]
[356073340,1741881046665,-500.0,0.00028409,18]
[356073341,1741881046675,-500.0,0.00028409,18]
[356073342,1741881046685,-500.0,0.00028409,18]
[356073343,1741881046695,-500.0,0.00028409,18]
[356073344,1741881046705,-1000.0,0.00028409,7]
[356073345,1741881046715,-235.49053194,0.00028409,18]
[356073346,1741881046725,-500.0,0.00028409,18]
[356073347,1741881046736,-213.99173806,0.00028409,18]
[356073348,1741881046747,-500.0,0.00028409,18]
[356073349,1741881046757,-500.0,0.00028409,18]
[356073350,1741881046767,-500.0,0.00028409,18]
[356073351,1741881046777,-500.0,0.00028409,18]
[356073352,1741881046787,-162.65657702,0.00028409,18]
[356073353,1741881046797,-518.72,0.00028409,18]
[356073354,1741881046807,-518.72,0.00028409,18]
[356073355,1741881046818,-518.72,0.00028409,18]
[356073356,1741881046828,-518.72,0.00028409,18]
[356073357,1741881046838,-518.72,0.00028409,18]
[356073358,1741881046848,-518.72,0.00028409,18]
[356073359,1741881046858,-518.72,0.00028409,18]
[356073360,1741881046868,-518.72,0.00028409,18]
[356073361,1741881046879,-518.72,0.00028409,18]
[356073362,1741881046889,-500.0,0.00028409,18]
[356073363,1741881046899,-500.0,0.00028409,18]
[356073364,1741881046910,-500.0,0.00028409,18]
[356073365,1741881046920,-500.0,0.00028409,18]
[356073366,1741881046929,-500.0,0.00028409,18]
[356073367,1741881046939,-500.0,0.00028409,18]
[356073368,1741881046952,-500.0,0.00028409,18]
[356073369,1741881046964,-500.0,0.00028409,18]
[356073370,1741881046974,-500.0,0.00028409,18]
[356073371,1741881046984,-500.0,0.00028409,18]
[356073372,1741881046995,-500.0,0.00028409,18]
[356073373,1741881047005,-500.0,0.00028409,18]
[356073374,1741881047016,-314.07588806,0.00028409,18]
[356073375,1741881047028,-500.0,0.00028409,18]
[356073376,1741881047044,-500.0,0.00028409,18]
[356073377,1741881047054,-500.0,0.00028409,18]
[356073378,1741881047066,-500.0,0.00028409,18]
[356073379,1741881047077,-500.0,0.00028409,18]
[356073380,1741881047087,-500.0,0.00028409,18]
[356073381,1741881047098,-500.0,0.00028409,18]
[356073382,1741881047108,-500.0,0.00028409,18]
[356073383,1741881047119,-500.0,0.00028409,18]
[356073384,1741881047129,-616.04761341,0.00028409,18]
[356073385,1741881047139,-500.0,0.0002841,18]
[356073386,1741881047150,-500.0,0.0002841,18]
[356073387,1741881047161,-477.73966597,0.0002841,18]
[356073388,1741881047175,-22.26033403,0.0002841,18]
[356073389,1741881047185,-500.0,0.0002841,18]
[356073390,1741881047196,-184.22316597,0.0002841,18]
[356073391,1741881047209,-315.77683403,0.0002841,18]
[356073392,1741881047219,-498.02316597,0.0002841,18]
[356073393,1741881047240,-1.97683403,0.0002841,18]
[356073394,1741881047251,-500.0,0.0002841,18]
[356073395,1741881047262,-310.58279018,0.0002841,18]
[356073396,1741881047275,-189.41720982,0.0002841,18]
[356073397,1741881047285,-119.99779018,0.0002841,18]
[356073398,1741881047299,-380.00220982,0.0002841,18]
[356073399,1741881047576,-500.0,0.0002841,18]
[356073400,1741881047597,-86.43029511,0.0002841,18]
[356073422,1741881668857,200.0,8.615e-05,2]
[356073450,1741882032523,234.682491,0.00010859,2]
[356073476,1741882166877,258.12,0.00011012,2]
[356073477,1741882231589,-234.682491,0.000153,2]
[356073478,1741882231599,-150.0,0.0001683,2]
[356073479,1741882231608,-150.0,0.0001683,2]
[356073480,1741882231618,-154.590148,0.00019742,2]
[356073481,1741882231627,-234.682491,0.00019742,2]
[356073482,1741882231637,-154.590148,0.00024183,2]
[356073483,1741882231647,-234.682491,0.00024183,2]
[356073484,1741882231656,-700.0,0.000251,2]
[356073485,1741882231666,-715.34,0.00025354,2]
[356073486,1741882231675,-1559.47779497,0.00026151,2]
[356073487,1741882231685,-234.682491,0.00026624,4]
[356073488,1741882231695,-459.0,0.00027101,120]
[356073489,1741882231704,-314.0,0.00027101,120]
[356073490,1741882231714,-467.35525159,0.00027101,2]
[356073491,1741882231723,-642.11560337,0.00027101,120]
[356073492,1741882231733,-300.0,0.00027144,2]
[356073493,1741882231743,-200.0,0.00027144,15]
[356073494,1741882231752,-648.69,0.00027145,120]
[356073495,1741882231763,-234.682491,0.00027168,4]
[356073496,1741882231773,-163.29,0.0002734,2]
[356073497,1741882231783,-200.0,0.00027358,2]
[356073498,1741882231792,-742.31424894,0.00027397,14]
[356073499,1741882231802,-207.82435013,0.00027413,2]
[356073500,1741882231814,-792.17564987,0.00027413,2]
[356073501,1741882231824,-250.0,0.00027415,2]
[356073502,1741882231834,-464.28,0.00027426,120]
[356073503,1741882231843,-150.0,0.00027476,120]
[356073504,1741882231853,-393.2014835,0.00027618,2]
[356073505,1741882231864,-322.1385165,0.00027618,2]
[356073506,1741882231875,-550.0,0.00027663,2]
[356073507,1741882231884,-365.07743824,0.00027678,2]
[356073508,1741882231894,-600.0,0.000277,10]
[356073509,1741882231903,-234.682491,0.00027712,4]
[356073510,1741882231912,-163.29,0.00027795,2]
[356073511,1741882231922,-1200.0,0.000278,10]
[356073512,1741882231932,-532.03252452,0.00027848,2]
[356073513,1741882231943,-345.96747548,0.00027848,2]
[356073514,1741882231955,-300.0,0.00027848,2]
[356073515,1741882231965,-1800.0,0.000279,10]
[356073516,1741882231975,-201.89690782,0.000279,4]
[356073517,1741882231984,-2267.63564644,0.00028,30]
[356073518,1741882231996,-5732.36621874,0.00028,30]
[356073519,1741882232007,-1000.0,0.00028,7]
[356073520,1741882232016,-981.58951083,0.00028,2]
[356073521,1741882232028,-1018.41048917,0.00028,2]
[356073522,1741882232037,-1214.41210987,0.00028,2]
[356073523,1741882232050,-322.83442247,0.00028,2]
[356073524,1741882232061,-462.75346766,0.00028,2]
[356073525,1741882232071,-355.53983004,0.00028,2]
[356073526,1741882232082,-644.46016996,0.00028,2]
[356073527,1741882232092,-200.0,0.00028025,2]
[356073529,1741882232102,-477.76012583,0.00028135,2]
[356073531,1741882232114,-400.23987417,0.00028135,2]
[356073533,1741882232123,-150.0,0.00028219,120]
[356073535,1741882232133,-163.29,0.00028251,2]
[356073537,1741882232142,-69.41012583,0.00028256,4]
[356073540,1741882232154,-85.18002217,0.00028256,4]
[356073541,1741882232164,-234.682491,0.00028256,4]
[356073544,1741882232174,-150.0,0.00028294,120]
[356073545,1741882232183,-250.46748683,0.000283,2]
[356073548,1741882232195,-300.3,0.000283,2]
[356073550,1741882232207,-812.26,0.000283,2]
[356073552,1741882232218,-636.97251317,0.000283,2]
[356073554,1741882232228,-104.69591188,0.00028347,2]